bitfinex-derivatives/quotes_SOLF0:USTF0_20240823
["timestamp","ask_amount","ask_price","bid_price","bid_amount"]
[1724434747383,32.64539251,145.67,145.61,0.04658852]
[1724434747989,3.4333,145.62,145.61,0.04658852]
[1724434748193,3.44711263,145.65,145.61,0.04658852]
[1724434748389,3.4329,145.64,145.62,0.04511588]
[1724434748590,32.60222177,145.69,145.62,0.04511588]
[1724434749095,3.4329,145.64,145.62,0.04511588]
[1724434749496,3.38222177,145.69,145.62,29.26511588]
[1724434749790,3.4327,145.65,145.62,29.26511588]
[1724434749998,34.10069285,145.71,145.62,29.26816856]
[1724434750199,34.10069285,145.71,145.65,0.04361886]
[1724434750400,4.88069285,145.71,145.65,0.04361886]
[1724434751498,3.4323,145.66,145.65,0.04361886]
[1724434765007,4.88069285,145.71,145.65,0.04361886]
[1724434765604,3.4322,145.67,145.66,29.22]
[1724434766217,3.4322,145.67,145.66,34.71]
[1724434766607,3.4322,145.67,145.66,5.49]
[1724434766808,3.4322,145.67,145.66,34.71]
[1724434768308,10.2888,145.78,145.66,34.71]
[1724434768608,1.4162,145.77,145.7,0.046805]
[1724434769008,3.4311,145.71,145.7,0.046805]
[1724434770717,3.4321,145.67,145.66,5.49]
[1724434774215,3.47851888,145.68,145.66,34.71]
[1724434774718,3.4321,145.67,145.66,5.49]
[1724434777015,3.47851888,145.68,145.66,5.49]
[1724434777218,3.47851888,145.68,145.67,29.22]
[1724434779219,0.04661888,145.68,145.67,29.22]
[1724434780415,3.47841888,145.68,145.67,29.22]
[1724434780617,3.47841888,145.68,145.66,5.49]
[1724434782121,3.4321,145.67,145.66,5.49]
[1724434783323,3.47851888,145.68,145.66,34.71]
[1724434784821,3.4321,145.67,145.66,34.71]
[1724434788420,3.4321,145.67,145.66,5.49]
[1724434791920,3.47851888,145.68,145.66,34.71]
[1724434793230,3.47851888,145.68,145.67,1.3178]
[1724434794730,3.4321,145.67,145.66,5.49]
[1724434797936,0.04661888,145.68,145.66,5.49]
[1724434799430,3.47861888,145.68,145.66,5.49]
[1724434800728,0.04661888,145.68,145.66,5.49]
[1724434802233,3.4321,145.67,145.66,5.49]
[1724434802933,3.47861888,145.68,145.66,34.71]
[1724434804235,3.4321,145.67,145.66,34.71]
[1724434804737,3.47851888,145.68,145.66,34.71]
[1724434805036,57.77685134,145.81,145.66,34.71]
[1724434805234,3.4314,145.7,145.69,29.22]
[1724434805431,29.22,145.76,145.67,29.22]
[1724434805830,3.4311,145.72,145.67,29.22]
[1724434806039,29.22,145.76,145.67,29.22]
[1724434806335,29.22,145.76,145.68,0.04730339]
[1724434806633,3.4311,145.71,145.69,5.49]
[1724434806835,3.4311,145.71,145.69,11.02691827]
[1724434807635,3.4314,145.7,145.69,11.02691827]
[1724434807833,3.4314,145.7,145.69,10.98]
[1724434808026,6.80432676,145.7,145.69,10.98]
[1724434808830,36.02432676,145.7,145.69,6.8969]
[1724434809038,36.02432676,145.7,145.69,5.1691]
[1724434809235,6.80432676,145.7,145.69,5.1691]
[1724434811536,3.4316,145.69,145.68,0.05015347]
[1724434812834,32.6516,145.69,145.68,0.05015347]
[1724434814336,3.4329,145.64,145.58,34.0185]
[1724434814542,29.22,145.67,145.58,30.5844]
[1724434815036,3.4332,145.63,145.58,30.5844]
[1724434815238,29.22,145.67,145.58,30.5844]
[1724434815442,3.4336,145.61,145.57,1.3406]
[1724434815744,0.05033959,145.64,145.61,0.05078757]
[1724434815945,29.22,145.69,145.6,29.22]
[1724434815946,3.4331,145.63,145.6,29.22]
[1724434816138,3.4331,145.63,145.61,0.0455273]
[1724434816341,0.05033959,145.64,145.61,0.0455273]
[1724434816541,0.05033959,145.64,145.62,29.22]
[1724434818638,0.05033959,145.64,145.63,10.41]
[1724434819340,3.48313959,145.64,145.63,10.41]
[1724434819845,0.05033959,145.64,145.63,10.41]
[1724434820340,3.432,145.68,145.63,10.41]
[1724434820533,3.40737688,145.69,145.64,29.22]
[1724434820738,29.22,145.73,145.64,29.22]
[1724434820938,3.4319,145.68,145.64,29.22]
[1724434821242,3.4319,145.68,145.65,0.04465016]
[1724434821646,3.4317,145.69,145.65,0.04465016]
[1724434821940,3.38197432,145.72,145.68,29.22]
[1724434822145,29.22,145.77,145.69,5.49]
[1724434822442,29.22,145.77,145.69,5.53804727]
[1724434823545,29.22,145.77,145.7,29.22]
[1724434823740,29.22,145.77,145.72,0.04568975]
[1724434824248,3.4307,145.73,145.72,0.04568975]
[1724434824841,3.4307,145.73,145.72,5.43568975]
[1724434826542,3.4307,145.73,145.72,12.58568975]
[1724434828151,32.6507,145.73,145.72,12.53588975]
[1724434828343,3.4314,145.7,145.69,5.49]
[1724434828649,6.88253714,145.7,145.69,5.49]
[1724434828835,3.4314,145.7,145.69,5.49]
[1724434829243,3.4316,145.69,145.68,0.04911604]
[1724434829441,29.22,145.69,145.67,0.05139318]
[1724434829646,29.22,145.68,145.67,0.05139318]
[1724434829846,32.68399076,145.68,145.67,0.05139318]
[1724434830541,36.11579076,145.68,145.67,0.05139318]
[1724434830734,3.4318,145.68,145.67,0.05139318]
[1724434830934,0.04449691,145.7,145.67,0.05139318]
[1724434831247,3.47589691,145.7,145.67,0.05139318]
[1724434831443,3.47589691,145.7,145.67,2.79489318]
[1724434831948,0.04449691,145.7,145.67,2.79489318]
[1724434833039,1.0,145.76,145.69,36.26]
[1724434833241,3.36539821,145.8,145.69,36.26]
[1724434833441,36.26,145.8,145.69,36.26]
[1724434833748,3.4305,145.74,145.69,36.26]
[1724434834141,3.4305,145.74,145.7,0.05222046]
[1724434835048,3.4308,145.73,145.7,0.05222046]
[1724434835250,36.26,145.78,145.7,0.04806225]
[1724434835447,39.61279118,145.78,145.7,0.04806225]
[1724434836046,3.35279118,145.78,145.7,0.04806225]
[1724434836242,36.26,145.8,145.7,0.04806225]
[1724434836454,36.26,145.8,145.74,0.0452796]
[1724434836755,3.4302,145.75,145.74,0.0452796]
[1724434838846,3.35382028,145.8,145.74,0.0452796]
[1724434839054,36.26,145.81,145.74,0.0452796]
[1724434839248,39.65384483,145.81,145.74,0.0452796]
[1724434840552,3.4302,145.75,145.74,0.0452796]
[1724434842048,39.6902,145.75,145.74,0.0452796]
[1724434842250,39.6902,145.75,145.74,0.0022796]
[1724434843856,3.4302,145.75,145.74,0.0022796]
[1724434845155,39.6902,145.75,145.74,0.0022796]
[1724434845459,39.6902,145.75,145.74,5.4822796]
[1724434847757,3.4302,145.75,145.74,5.4822796]
[1724434848160,0.043,145.76,145.74,5.4822796]
[1724434848954,3.473,145.76,145.74,5.4822796]
[1724434849357,0.043,145.76,145.74,5.4822796]
[1724434849657,3.473,145.76,145.75,5.48]
[1724434850050,39.733,145.76,145.75,5.48]
[1724434850250,3.473,145.76,145.75,5.48]
[1724434854549,0.043,145.76,145.75,5.48]
[1724434855048,3.473,145.76,145.75,5.48]
[1724434855248,0.043,145.76,145.75,5.48]
[1724434855657,3.473,145.76,145.75,5.48]
[1724434856859,3.51322804,145.81,145.75,5.48]
[1724434857165,28.99,145.81,145.75,5.48]
[1724434857353,3.45319338,145.81,145.75,5.48]
[1724434857561,28.99,145.81,145.75,5.48]
[1724434857859,3.43,145.76,145.75,5.48]
[1724434860865,3.4302,145.75,145.74,0.0022796]
[1724434861065,32.4202,145.75,145.74,0.0022796]
[1724434862663,3.4302,145.75,145.74,0.0022796]
[1724434862864,28.99,145.76,145.74,0.0022796]
[1724434862865,28.99,145.78,145.74,0.0022796]
[1724434863262,3.4301,145.76,145.74,0.0022796]
[1724434863665,28.99,145.78,145.74,0.0022796]
[1724434863964,3.4302,145.75,145.74,0.0022796]
[1724434864766,3.37359056,145.81,145.74,0.0022796]
[1724434864958,56.43,145.82,145.74,0.0022796]
[1724434865158,59.82281567,145.82,145.74,0.0022796]
[1724434865363,28.99,145.8,145.74,0.0022796]
[1724434866458,3.4297,145.77,145.74,0.0022796]
[1724434866663,50.45498259,145.87,145.74,28.9922796]
[1724434866862,16.21977453,145.88,145.74,28.9922796]
[1724434866863,28.99,145.84,145.79,0.0498983]
[1724434867063,3.4288,145.81,145.8,0.04560394]
[1724434867663,16.21977453,145.92,145.8,0.04560394]
[1724434867868,28.99,145.87,145.8,1.41620394]
[1724434868065,28.99,145.87,145.8,1.3706]
[1724434868269,3.4283,145.84,145.82,0.04444984]
[1724434868466,3.4283,145.84,145.82,0.05194207]
[1724434868769,32.49390255,145.85,145.82,0.05194207]
[1724434868959,3.4283,145.83,145.82,0.04558782]
[1724434869368,32.4183,145.83,145.82,0.04558782]
[1724434869970,35.77164826,145.83,145.82,0.04558782]
[1724434870770,6.78164826,145.83,145.82,0.04558782]
[1724434870964,3.4283,145.83,145.82,0.04558782]
[1724434872471,3.4281,145.84,145.82,0.04558782]
[1724434873275,3.4279,145.85,145.82,0.04558782]
[1724434873472,28.99,145.89,145.82,0.04558782]
[1724434873874,3.4281,145.84,145.82,0.04558782]
[1724434874879,3.4841723,145.93,145.83,36.19]
[1724434875184,36.19,145.94,145.87,0.05031349]
[1724434875365,39.58082807,145.94,145.87,0.05031349]
[1724434877278,6.846,146.06,145.91,36.19]
[1724434877473,1.349,146.01,145.95,0.05159106]
[1724434877678,3.4253,145.96,145.95,0.05159106]
[1724434878180,4.85735491,146.01,145.95,0.05159106]
[1724434878776,3.4252,145.97,145.95,0.05159106]
[1724434879280,27.42,146.04,145.95,0.05159106]
[1724434879585,3.46071778,146.04,145.98,0.04390247]
[1724434879878,3.46071778,146.04,145.96,36.19]
[1724434879879,3.4236,146.03,146.0,0.05131294]
[1724434880278,3.4236,146.03,146.0,5.52131294]
[1724434881280,3.4239,146.02,146.0,5.52131294]
[1724434881782,6.15631677,146.08,146.0,5.52131294]
[1724434881988,3.46311677,146.08,146.0,41.71131294]
[1724434882175,27.42,146.17,146.0,41.71131294]
[1724434882176,4.0573,146.15,146.02,36.19]
[1724434882378,36.19,146.13,146.01,1.354]
[1724434882573,36.19,146.11,146.07,0.04628405]
[1724434882877,3.4226,146.08,146.07,0.04628405]
[1724434884988,7.14996259,146.26,146.07,36.23628405]
[1724434885191,1.3124,146.25,146.15,0.04874631]
[1724434885393,3.4187,146.24,146.2,36.19]
[1724434885689,1.3124,146.28,146.19,36.19]
[1724434885895,1.3124,146.28,146.21,0.04760673]
[1724434886093,36.19,146.27,146.21,0.04760673]
[1724434886293,36.19,146.25,146.21,0.04760673]
[1724434886593,3.4192,146.22,146.21,0.04760673]
[1724434886984,3.4206,146.16,146.15,1.3241]
[1724434887184,3.34875493,146.27,146.09,36.19]
[1724434887185,3.39228576,146.18,146.09,36.19]
[1724434887386,3.39228576,146.18,146.1,1.3455]
[1724434887387,36.19,146.17,146.1,1.3455]
[1724434887593,3.4215,146.12,146.1,1.3455]
[1724434887790,3.34875493,146.27,146.1,1.3455]
[1724434888094,3.4201,146.18,146.17,0.04932319]
[1724434888295,39.55971156,146.18,146.1,1.3455]
[1724434888490,36.19,146.14,146.03,37.4882]
[1724434888692,36.19,146.12,146.04,1.3455]
[1724434889093,1.3954,146.17,146.04,1.3455]
[1724434889392,36.19,146.1,146.09,0.04417543]
[1724434889594,36.19,146.1,146.0,5.47]
[1724434889595,3.4236,146.04,146.0,5.47]
[1724434889895,36.19,146.06,146.0,5.47]
[1724434890088,36.19,146.04,146.0,5.47]
[1724434890290,3.4241,146.01,146.0,5.47]
[1724434891389,3.46932577,146.02,146.0,5.47]
[1724434891700,0.04542577,146.02,146.0,5.47]
[1724434892394,3.4241,146.01,146.0,5.47]
[1724434892595,0.04542577,146.02,146.0,5.47]
[1724434892790,3.46952577,146.02,146.0,5.47]
[1724434893197,3.4824977,146.12,146.01,36.19]
[1724434893396,36.19,146.12,146.01,36.19]
[1724434893694,36.19,146.11,146.01,36.19]
[1724434893897,39.56374308,146.11,146.01,36.19]
[1724434894097,36.19,146.09,146.01,5.47]
[1724434894396,90.35444148,146.17,146.01,5.47]
[1724434894397,36.23727409,146.07,146.05,0.04546989]
[1724434894604,36.2342172,146.07,146.05,0.0447524]
[1724434894996,3.4229,146.06,146.05,0.0447524]
[1724434895196,36.2342172,146.07,146.06,3.9871]
[1724434895400,36.2342172,146.07,146.06,1.8625]
[1724434896197,39.6569172,146.07,146.06,1.8625]
[1724434897496,3.4669172,146.07,146.06,1.8625]
[1724434898191,3.4669172,146.07,146.05,0.0447524]
[1724434898192,3.4229,146.06,146.05,0.0447524]
[1724434898395,36.19,146.06,146.01,5.47]
[1724434898598,36.19,146.03,146.01,5.47]
[1724434898798,36.19,146.02,146.01,5.47]
[1724434899005,39.6139,146.02,146.01,5.47]
[1724434899298,36.19,146.02,145.91,36.19]
[1724434899501,0.05177642,145.98,145.95,0.05262662]
[1724434900097,0.05177642,145.98,145.95,36.24262662]
[1724434900702,0.05177642,145.98,145.95,0.05262662]
[1724434901297,3.47667642,145.98,145.95,0.05262662]
[1724434901804,0.05177642,145.98,145.95,7.53262662]
[1724434902503,3.4253,145.96,145.95,7.53262662]
[1724434902803,0.05177642,145.98,145.95,13.01262662]
[1724434903004,36.19,146.05,145.96,36.19]
[1724434903312,36.19,146.08,145.96,36.19]
[1724434903501,3.4232,146.05,145.97,6.7964]
[1724434903707,1.3152,146.08,145.97,6.7964]
[1724434903907,0.04497574,146.04,146.01,0.04385752]
[1724434904311,3.4239,146.02,146.01,0.04385752]
[1724434906909,0.04497574,146.04,146.01,0.04385752]
[1724434907213,0.04497574,146.04,146.01,36.23385752]
[1724434908216,3.4238,146.03,146.01,36.23385752]
[1724434908408,0.04497574,146.04,146.01,0.04385752]
[1724434908815,3.4239,146.02,146.01,0.04385752]
[1724434909814,3.4248,145.98,145.97,5.48]
[1724434911414,0.04649688,145.99,145.97,5.48]
[1724434911609,27.38,146.06,145.98,36.19]
[1724434911813,27.38,146.06,145.98,37.5585]
[1724434912008,3.4236,146.04,146.0,36.19]
[1724434912313,27.38,146.06,146.02,36.19]
[1724434912613,3.47337427,146.05,146.03,0.0492156]
[1724434913313,0.04997427,146.05,146.03,0.0492156]
[1724434913518,30.0247,146.15,146.04,36.19]
[1724434913815,33.51017527,146.15,146.04,36.19]
[1724434914008,33.51017527,146.15,146.01,36.19]
[1724434914009,3.4229,146.06,146.01,36.19]
[1724434914412,36.19,146.12,146.01,36.19]
[1724434914718,33.51017527,146.15,146.07,36.19]
[1724434914719,0.03604193,146.08,146.07,36.19]
[1724434914918,0.03604193,146.09,146.07,36.19]
[1724434915224,33.51017527,146.15,146.07,36.23789477]
[1724434915225,27.38,146.15,146.07,36.23789477]
[1724434915416,27.38,146.15,146.09,36.19]
[1724434916212,3.4218,146.11,146.09,36.19]
[1724434916415,3.4218,146.11,146.1,5.47]
[1724434917217,3.4215,146.13,146.1,5.47]
[1724434917723,3.41375852,146.14,146.1,5.47]
[1724434918020,27.38,146.15,146.1,5.47]
[1724434918516,1.2924,146.14,146.1,5.47]
[1724434919416,3.4217,146.11,146.1,5.47]
[1724434920612,3.4216,146.12,146.1,5.47]
[1724434920814,27.38,146.15,146.1,5.47]
[1724434921319,3.4211,146.14,146.1,5.47]
[1724434921521,27.38,146.15,146.1,5.47]
[1724434922018,27.38,146.15,146.11,36.19]
[1724434922219,3.4205,146.17,146.13,36.19]
[1724434922417,1.3601,146.21,146.13,36.19]
[1724434922418,1.3601,146.21,146.14,0.04904375]
[1724434922617,1.3601,146.21,146.15,36.19]
[1724434922822,3.4203,146.18,146.15,36.19]
[1724434923021,1.3601,146.21,146.15,36.19]
[1724434923221,226.0,146.36,146.17,36.19]
[1724434923424,63.57,146.29,146.22,0.04431764]
[1724434923617,67.04566139,146.29,146.22,0.04431764]
[1724434924128,30.85566139,146.29,146.22,0.04431764]
[1724434924315,27.38,146.29,146.23,36.19]
[1724434924715,36.19,146.34,146.23,36.19]
[1724434924918,36.19,146.32,146.23,11.72]
[1724434925415,36.19,146.3,146.26,0.0472358]
[1724434925621,37.5158,146.31,146.26,0.0472358]
[1724434925923,3.418,146.27,146.26,0.0472358]
[1724434926322,3.4187,146.24,146.23,19.49]
[1724434926628,6.76184421,146.24,146.23,15.2409]
[1724434926824,6.76184421,146.24,146.23,13.1166]
[1724434927023,6.76184421,146.24,146.23,5.15882358]
[1724434927221,6.76184421,146.24,146.13,1.3992]
[1724434927222,3.4208,146.15,146.13,1.3992]
[1724434927727,0.04603951,146.15,146.13,0.04639062]
[1724434927928,0.04603951,146.15,146.13,36.23639062]
[1724434928321,3.46683951,146.15,146.13,0.04639062]
[1724434928923,39.65683951,146.15,146.13,0.04639062]
[1724434929127,43.15043717,146.15,146.13,0.04639062]
[1724434929428,39.65683951,146.15,146.13,0.04639062]
[1724434929625,3.421,146.14,146.13,0.04639062]
[1724434930425,3.46693951,146.15,146.13,0.04639062]
[1724434930623,0.04603951,146.15,146.13,0.04639062]
[1724434931818,3.34314421,146.24,146.13,36.23639062]
[1724434932025,36.19,146.25,146.13,36.19]
[1724434932326,3.45029166,146.24,146.15,36.19]
[1724434932517,36.19,146.23,146.13,36.19]
[1724434932918,3.4209,146.15,146.13,36.19]
[1724434933131,39.6263011,146.23,146.13,36.24071714]
[1724434933425,36.19,146.21,146.12,9.3525]
[1724434933631,3.421,146.14,146.12,9.3525]
[1724434933823,36.19,146.21,146.12,9.3525]
[1724434934023,36.19,146.19,146.15,0.04988233]
[1724434934229,39.56336268,146.19,146.12,6.7777]
[1724434934431,1.2839,146.25,146.16,0.04418251]
[1724434934632,43.36,146.22,146.19,0.0432505]
[1724434934827,46.86334421,146.22,146.19,0.0432505]
[1724434935022,46.86334421,146.22,146.16,10.08]
[1724434935023,3.4203,146.17,146.16,10.08]
[1724434935225,3.4203,146.17,146.16,5.8284]
[1724434935425,3.50368626,146.17,146.0,4.1697]
[1724434935627,43.36,146.11,146.0,4.1697]
[1724434936134,0.0432505,146.07,146.04,0.04533685]
[1724434936321,3.4229,146.06,146.04,0.04533685]
[1724434937526,0.0432505,146.07,146.04,0.04533685]
[1724434938034,43.36,146.16,146.06,43.36]
[1724434938329,43.36,146.18,146.07,1.3434]
[1724434938522,43.36,146.18,146.08,1.2859]
[1724434938723,46.75518283,146.18,146.08,1.2859]
[1724434938924,43.36,146.18,146.12,0.04611428]
[1724434939125,3.4209,146.15,146.12,0.04611428]
[1724434939526,43.36,146.21,146.12,0.04611428]
[1724434940134,43.36,146.21,146.11,43.36]
[1724434940135,46.74661804,146.21,146.11,43.36]
[1724434940334,46.74661804,146.21,146.15,0.04940347]
[1724434940538,43.36,146.23,146.15,0.04940347]
[1724434940730,43.36,146.23,146.11,43.36]
[1724434941030,3.4199,146.19,146.18,0.05185413]
[1724434942329,3.40954452,146.24,146.18,0.05185413]
[1724434942924,43.36,146.25,146.18,0.05185413]
[1724434943228,3.44143195,146.24,146.18,0.05185413]
[1724434943435,3.4199,146.19,146.18,0.05185413]
[1724434944232,3.4199,146.19,146.18,0.00535413]
[1724434945825,3.4217,146.12,146.08,1.401]
[1724434946037,43.36,146.2,146.08,1.401]
[1724434946230,3.4212,146.14,146.08,1.401]
[1724434946429,3.39354402,146.23,146.1,43.36]
[1724434946635,43.36,146.22,146.1,43.36]
[1724434946833,43.36,146.22,146.15,0.04962008]
[1724434946834,0.05185413,146.17,146.15,0.04962008]
[1724434947137,0.04987572,146.17,146.15,0.04962008]
[1724434947336,3.4206,146.16,146.15,0.04962008]
[1724434950137,46.7806,146.16,146.15,0.04962008]
[1724434950336,46.7806,146.16,146.06,2.7041]
[1724434950337,3.4224,146.08,146.06,2.7041]
[1724434950639,3.4224,146.08,146.06,1.3403]
[1724434951131,3.4224,146.08,146.04,1.353]
[1724434951442,3.4224,146.08,146.06,0.05154174]
[1724434952032,0.05044862,146.09,146.06,0.05154174]
[1724434952743,3.47284862,146.09,146.06,0.05154174]
[1724434953637,3.4224,146.08,146.06,0.05154174]
[1724434959438,36.20044862,146.09,146.05,0.94]
[1724434959646,36.15,146.06,145.98,1.3873]
[1724434960546,0.04768737,146.03,146.01,0.05114291]
[1724434960740,36.19768737,146.03,146.01,0.05114291]
[1724434961249,0.04768737,146.03,146.01,0.05114291]
[1724434961444,30.84235051,146.13,146.01,36.20114291]
[1724434961648,36.15,146.12,146.02,1.4117]
[1724434962349,3.4227,146.08,146.02,1.4117]
[1724434962543,0.0519138,146.06,146.04,0.0513702]
[1724434962744,0.04995391,146.06,146.04,10.3513702]
[1724434963450,3.422,146.11,146.04,15.8213702]
[1724434963637,27.38,146.13,146.04,15.77]
[1724434964047,30.83705735,146.13,146.04,15.77]
[1724434964243,3.4223,146.09,146.04,15.77]
[1724434964652,30.83705735,146.13,146.04,15.77]
[1724434964843,0.04953299,146.08,146.05,0.05107548]
[1724434968354,3.47193299,146.08,146.05,0.05107548]
[1724434968562,0.04953299,146.08,146.05,1.39247548]
[1724434969253,3.4229,146.07,146.05,1.39247548]
[1724434969755,3.47203299,146.08,146.05,1.39247548]
[1724434969951,3.47203299,146.08,146.06,1.4155]
[1724434970745,27.38,146.13,146.06,1.4155]
[1724434971151,43.4529,146.2,146.08,43.35]
[1724434971351,0.1029,146.2,146.1,43.35]
[1724434971752,0.1029,146.2,146.14,0.04413506]
[1724434972258,0.1029,146.2,146.14,5.51413506]
[1724434972760,3.4208,146.15,146.14,5.51413506]
[1724434976648,3.4208,146.15,146.14,3.28603506]
[1724434976853,3.4208,146.15,146.14,1.93973506]
[1724434979359,3.421,146.14,146.13,0.04668654]
[1724434979660,50.22263645,146.14,146.13,0.04668654]
[1724434979866,46.771,146.14,146.13,0.04668654]
[1724434980253,3.4229,146.06,146.03,1.3157]
[1724434980456,43.35,146.11,146.03,1.3157]
[1724434980656,46.85194287,146.14,146.03,1.3157]
[1724434981152,3.50194287,146.14,146.04,60.4011]
[1724434981455,0.04415229,146.1,146.08,0.0510359]
[1724434981757,0.04959679,146.1,146.08,0.0510359]
[1724434981960,43.35,146.19,146.08,0.0510359]
[1724434982256,43.35,146.19,146.06,43.35]
[1724434982957,0.04706649,146.14,146.11,0.04770695]
[1724434983159,3.35365296,146.13,146.11,0.04770695]
[1724434983455,3.4215,146.12,146.11,0.04770695]
[1724434984256,0.04706649,146.14,146.11,0.04770695]
[1724434984765,0.04706649,146.14,146.11,2.73950695]
[1724434985362,3.46806649,146.14,146.11,2.73950695]
[1724434985861,0.04706649,146.14,146.11,2.73950695]
[1724434986362,3.46816649,146.14,146.11,2.73950695]
[1724434986557,0.04706649,146.14,146.11,2.73950695]
[1724434986860,3.4215,146.13,146.11,2.73950695]
[1724434988359,3.46816649,146.14,146.11,2.73950695]
[1724434989060,3.4209,146.15,146.11,2.73950695]
[1724434989361,36.14,146.2,146.11,2.73950695]
[1724434989558,36.14,146.2,146.12,5.47]
[1724434989961,3.4209,146.15,146.12,5.47]
[1724434990261,36.14,146.2,146.12,5.52155837]
[1724434990465,3.4212,146.14,146.12,5.52155837]
[1724434991358,3.4213,146.13,146.12,5.52155837]
[1724434991666,3.4213,146.13,146.12,5.47]
[1724434998461,1.0,146.21,146.12,5.47]
[1724434998658,1.0,146.21,146.15,0.0454291]
[1724434998857,3.49577548,146.21,146.15,0.0454291]
[1724434999058,27.38,146.22,146.15,0.0454291]
[1724434999564,3.42,146.19,146.15,0.0454291]
[1724434999962,30.7827008,146.22,146.15,0.0454291]
[1724435001773,3.4205,146.17,146.16,5.47]
[1724435001976,30.7827008,146.22,146.16,5.47]
[1724435003069,3.4196,146.21,146.16,5.47]
[1724435003366,30.7827008,146.22,146.16,5.47]
[1724435003567,3.4198,146.2,146.16,5.47]
[1724435003771,30.7827008,146.22,146.16,5.47]
[1724435004573,3.4201,146.18,146.16,5.47]
[1724435004771,30.7827008,146.22,146.16,5.47]
[1724435004966,36.14,146.2,146.16,5.47]
[1724435005271,3.4203,146.17,146.16,5.47]
[1724435008570,39.5603,146.17,146.16,3.3458]
[1724435008776,3.4206,146.16,146.15,0.0454291]
[1724435012270,3.4208,146.15,146.14,5.47]
[1724435012471,39.5608,146.15,146.14,5.47]
[1724435013482,39.5608,146.15,146.08,1.2933]
[1724435013483,3.421,146.14,146.13,0.05171908]
[1724435013774,39.59186972,146.14,146.12,0.05148179]
[1724435013978,3.4213,146.13,146.12,0.04677477]
[1724435014176,6.91936804,146.13,146.12,0.04677477]
[1724435014484,3.4213,146.13,146.12,0.04677477]
[1724435014877,3.46427418,146.14,146.12,0.04677477]
[1724435015084,0.04317418,146.14,146.12,0.04677477]
[1724435015677,3.46437418,146.14,146.12,0.04677477]
[1724435015878,0.04317418,146.14,146.12,0.04677477]
[1724435016677,3.4213,146.13,146.12,0.04677477]
[1724435020984,0.04317418,146.14,146.12,0.04677477]
[1724435021385,1.2804,146.21,146.12,0.04677477]
[1724435021386,66.9227008,146.22,146.12,0.04677477]
[1724435021586,66.9227008,146.22,146.12,2.6974]
[1724435021787,36.14,146.2,146.12,2.6974]
[1724435022488,36.14,146.2,146.15,0.0515866]
[1724435022682,3.4206,146.16,146.15,0.0515866]
[1724435023087,36.14,146.2,146.15,0.0515866]
[1724435023291,3.4206,146.16,146.15,0.0515866]
[1724435023592,66.9227008,146.22,146.15,0.0515866]
[1724435024179,3.4206,146.16,146.15,0.0515866]
[1724435025291,3.4027008,146.22,146.15,0.0515866]
[1724435025592,36.14,146.24,146.15,0.0515866]
[1724435025787,39.59479374,146.24,146.18,0.04342578]
[1724435027390,3.4199,146.19,146.18,0.04342578]
[1724435027793,39.59479374,146.24,146.18,0.04342578]
[1724435028093,3.4199,146.19,146.18,0.04342578]
[1724435028698,3.45479374,146.24,146.18,0.04342578]
[1724435028997,27.36,146.26,146.18,10.33342578]
[1724435029187,36.14,146.25,146.18,10.33342578]
[1724435029792,3.4197,146.2,146.18,10.33342578]
[1724435030793,3.43685699,146.22,146.18,10.33342578]
[1724435030998,36.14,146.23,146.18,10.33342578]
[1724435031497,39.60284974,146.23,146.18,10.33342578]
[1724435032399,3.46284974,146.23,146.18,10.33342578]
[1724435032604,28.89,146.24,146.18,10.33342578]
[1724435032802,32.22562207,146.24,146.18,10.33342578]
[1724435032995,3.4198,146.2,146.18,10.33342578]
[1724435033897,3.4199,146.19,146.18,10.33342578]
[1724435034403,32.22562207,146.24,146.18,10.33342578]
[1724435034698,28.89,146.22,146.18,10.33342578]